Workbook

Sheet 7-10
A1: СОГЛАСОВАНО | O1: УТВЕРЖДЕНО
O2: ООО "КРЕПЫШ"
O3: _______________________Ефремов В.Ю.
A6: Меню для организации питания детей возрасте от 7 до 10 лет в образовательных учреждениях Мензелинского района РТ на 2 полугодие 2022-2023 учебный год.
A8: 1 день, 1 неделя
A9: № рецептуры | B9: Прием пищи, наименование блюда | C9: Масса | D9: Пищевые вещества | G9: Энергетическая ценность | H9: Витамины | M9: Минеральные вещества
D10: Белки | E10: Жиры | F10: Углеводы | H10: B1 | I10: B2 | J10: A | K10: D | L10: C | M10: Na | N10: K | O10: Ca | P10: Mg | Q10: P | R10: Fe | S10: I | T10: Se | U10: F
C11: г | D11: г | E11: г | F11: г | G11: ккал | H11: мг | I11: мг | J11: мкг рет.экв | K11: мкг | L11: мг | M11: мг | N11: мг | O11: мг | P11: мг | Q11: мг | R11: мг | S11: мкг | T11: мкг | U11: мкг
B12: Понедельник, 1 неделя
B13: Горячий завтрак | C13: 7-10
A14: 54-16з-2020 | B14: Винегрет с растительным маслом | C14: 60 | D14: 0.7 | E14: 5.4 | F14: 4 | G14: 67.1 | H14: 0.02 | I14: 0.02 | J14: 72.89 | K14: 0 | L14: 2.26 | M14: 200.99 | N14: 127.85 | O14: 12.1 | P14: 9.66 | Q14: 21.4 | R14: 0.41 | S14: 7.86 | T14: 0.13 | U14: 11.85
A15: 100 | B15: Суп картофельный с вермишелью | C15: 200 | D15: 9.2 | E15: 5.35 | F15: 16.2 | G15: 94.4 | H15: 0.1 | I15: 0 | J15: 0.2 | K15: 0 | L15: 5.3 | M15: 0 | N15: 0 | O15: 19.2 | P15: 18.7 | Q15: 46.1 | R15: 0.9 | S15: 0 | T15: 0 | U15: 0
A16: № Т/К 399 | B16: Блины фаршированные сгущенным молоком П/Ф (70гр) 2 шт | C16: 140 | D16: 5.6 | E16: 7.7 | F16: 37.8 | G16: 245 | H16: 0.16 | I16: 0 | J16: 0 | K16: 0 | L16: 0 | M16: 0 | N16: 0 | O16: 196.9 | P16: 38.48 | Q16: 85 | R16: 0.96 | S16: 0 | T16: 0 | U16: 0
A17: 54-4гн-2020 | B17: Чай с молоком и сахаром | C17: 200 | D17: 1.6 | E17: 1.1 | F17: 8.6 | G17: 50.9 | H17: 0.01 | I17: 0.07 | J17: 6.9 | K17: 0 | L17: 0.3 | M17: 19.68 | N17: 81.35 | O17: 103.48 | P17: 9.92 | Q17: 46.33 | R17: 0.78 | S17: 4.5 | T17: 0.88 | U17: 10
A18: Пром. | B18: Хлеб ржаной | C18: 20 | D18: 1.3 | E18: 0.2 | F18: 6.7 | G18: 34.2 | H18: 0.04 | I18: 0.02 | J18: 0 | K18: 0 | L18: 0 | M18: 122 | N18: 49 | O18: 7 | P18: 9.4 | Q18: 31.6 | R18: 0.78 | S18: 0 | T18: 6.18 | U18: 0
B19: Итого за Завтрак | C19: =SUM(C14:C18) -> 620 | D19: =SUM(D14:D18) -> 18.4 | E19: 19.75 | F19: 73.3 | G19: 491.6 | H19: 0.33 | I19: 0.11 | J19: 79.99 | K19: 0 | L19: 7.86 | M19: 342.67 | N19: 258.2 | O19: 338.68 | P19: 86.16 | Q19: 230.43 | R19: 3.83 | S19: 12.36 | T19: 7.19 | U19: 21.85
B20: Итого за день | C20: =C19 -> 620 | D20: =D19 -> 18.4 | E20: =E19 -> 19.75 | F20: 73.3 | G20: 491.6 | H20: 0.33 | I20: 0.11 | J20: 79.99 | K20: 0 | L20: 7.86 | M20: 342.67 | N20: 258.2 | O20: 338.68 | P20: 86.16 | Q20: 230.43 | R20: 3.83 | S20: 12.36 | T20: 7.19 | U20: 21.85
A22: 2 день, 1 неделя
A23: № рецептуры | B23: Прием пищи, наименование блюда | C23: Масса | D23: Пищевые вещества | G23: Энергетическая ценность | H23: Витамины | M23: Минеральные вещества
D24: Белки | E24: Жиры | F24: Углеводы | H24: B1 | I24: B2 | J24: A | K24: D | L24: C | M24: Na | N24: K | O24: Ca | P24: Mg | Q24: P | R24: Fe | S24: I | T24: Se | U24: F
C25: г | D25: г | E25: г | F25: г | G25: ккал | H25: мг | I25: мг | J25: мкг рет.экв | K25: мкг | L25: мг | M25: мг | N25: мг | O25: мг | P25: мг | Q25: мг | R25: мг | S25: мкг | T25: мкг | U25: мкг
B26: Вторник, 1 неделя
B27: Горячий завтрак | C27: 7-10
A28: № Т/к 15 | B28: Морковь отварная порциями | C28: 60 | D28: 0.8 | E28: 0.1 | F28: 4.1 | G28: 21 | H28: 0 | I28: 0 | J28: 1.5 | K28: 0 | L28: 3 | M28: 0 | N28: 0 | O28: 30.6 | P28: 22.8 | Q28: 33 | R28: 0.6 | S28: 0 | T28: 0 | U28: 0
A29: 54-6г-2020 | B29: Рис отварной | C29: 150 | D29: 3.6 | E29: 4.8 | F29: 36.4 | G29: 203.5 | H29: 0.03 | I29: 0.02 | J29: 18.36 | K29: 0.09 | L29: 0 | M29: 152.8 | N29: 46.55 | O29: 106.65 | P29: 23.59 | Q29: 72.57 | R29: 0.49 | S29: 20.76 | T29: 7.24 | U29: 27.19
A30: №Т/К 272 | B30: Котлета мясная с соусом | C30: 65/35 | D30: 11.4 | E30: 9.3 | F30: 12.4 | G30: 179.2 | H30: 0 | I30: 0 | J30: 0.1 | K30: 0 | L30: 1.8 | M30: 0 | N30: 0 | O30: 18.9 | P30: 22.1 | Q30: 115.5 | R30: 1.9 | S30: 0 | T30: 0 | U30: 0
A31: №Т/К 436 | B31: Напиток апельсиновый | C31: 200 | D31: 0.2 | E31: 0 | F31: 13 | G31: 53.5 | H31: 0 | I31: 0 | J31: 0 | K31: 0 | L31: 4 | M31: 0 | N31: 0 | O31: 13.5 | P31: 3.8 | Q31: 3.5 | R31: 0.1 | S31: 0 | T31: 0 | U31: 0
A32: Пром. | B32: Хлеб пшеничный | C32: 20 | D32: 1.52 | E32: 0.16 | F32: 9.84 | G32: 46.9 | H32: 0.02 | I32: 0.01 | J32: 0 | K32: 0 | L32: 0 | M32: 100 | N32: 19 | O32: 4 | P32: 3 | Q32: 13 | R32: 0.2 | S32: 0.64 | T32: 1.2 | U32: 2.9
A33: Пром. | B33: Хлеб ржаной | C33: 20 | D33: 1.3 | E33: 0.2 | F33: 6.7 | G33: 34.2 | H33: 0.04 | I33: 0.02 | J33: 0 | K33: 0 | L33: 0 | M33: 122 | N33: 49 | O33: 7 | P33: 9.4 | Q33: 31.6 | R33: 0.78 | S33: 0 | T33: 6.18 | U33: 0
B34: Итого за Завтрак | C34: 550 | D34: =SUM(D28:D33) -> 18.82 | E34: 14.56 | F34: 82.44 | G34: 538.3 | H34: 0.09 | I34: 0.05 | J34: 19.96 | K34: 0.09 | L34: 8.8 | M34: 374.8 | N34: 114.55 | O34: 180.65 | P34: 84.69 | Q34: 269.17 | R34: 4.07 | S34: 21.4 | T34: 14.62 | U34: 30.09
B35: Итого за день | C35: =C34 -> 550 | D35: =D34 -> 18.82 | E35: =E34 -> 14.56 | F35: 82.44 | G35: 538.3 | H35: 0.09 | I35: 0.05 | J35: 19.96 | K35: 0.09 | L35: 8.8 | M35: 374.8 | N35: 114.55 | O35: 180.65 | P35: 84.69 | Q35: 269.17 | R35: 4.07 | S35: 21.4 | T35: 14.62 | U35: 30.09
A37: 3 день, 1 неделя
A38: № рецептуры | B38: Прием пищи, наименование блюда | C38: Масса | D38: Пищевые вещества | G38: Энергетическая ценность | H38: Витамины | M38: Минеральные вещества
D39: Белки | E39: Жиры | F39: Углеводы | H39: B1 | I39: B2 | J39: A | K39: D | L39: C | M39: Na | N39: K | O39: Ca | P39: Mg | Q39: P | R39: Fe | S39: I | T39: Se | U39: F
C40: г | D40: г | E40: г | F40: г | G40: ккал | H40: мг | I40: мг | J40: мкг рет.экв | K40: мкг | L40: мг | M40: мг | N40: мг | O40: мг | P40: мг | Q40: мг | R40: мг | S40: мкг | T40: мкг | U40: мкг
B41: Среда, 1 неделя
B42: Горячий завтрак | C42: 7-10
A43: № т/к 33 | B43: Свекла отварная порциями | C43: 60 | D43: 0.9 | E43: 0.1 | F43: 5 | G43: 24.1 | H43: 0 | I43: 0 | J43: 0 | K43: 0 | L43: 2.4 | M43: 0 | N43: 0 | O43: 21.6 | P43: 11.8 | Q43: 23.4 | R43: 0.7 | S43: 0 | T43: 0 | U43: 0
A44: 54-1г-2020 | B44: Макароны отварные | C44: 150 | D44: 5.3 | E44: 4.9 | F44: 32.8 | G44: 196.8 | H44: 0.06 | I44: 0.02 | J44: 18.36 | K44: 0.09 | L44: 0 | M44: 149.04 | N44: 53.8 | O44: 105.83 | P44: 7.19 | Q44: 40.7 | R44: 0.73 | S44: 20.77 | T44: 0.06 | U44: 11.92
A45: №243 | B45: Сосиски говяжьи отварные, п/ф (2 шт) | C45: 100 | D45: 6.6 | E45: 10.35 | F45: 6.5 | G45: 202.15 | H45: 0 | I45: 0 | J45: 0.08 | K45: 0.01 | L45: 0 | M45: 0 | N45: 0 | O45: 7.44 | P45: 15.51 | Q45: 137.39 | R45: 1.74 | S45: 0 | T45: 0 | U45: 0
A46: 54-3гн-2020 | B46: Чай с лимоном и сахаром | C46: 207 | D46: 0.2 | E46: 0.1 | F46: 6.6 | G46: 27.9 | H46: 0 | I46: 0.01 | J46: 0.38 | K46: 0 | L46: 1.16 | M46: 1.26 | N46: 30.23 | O46: 67 | P46: 4.56 | Q46: 8.52 | R46: 0.77 | S46: 0.01 | T46: 0.02 | U46: 0.7
A47: Пром. | B47: Хлеб ржаной | C47: 20 | D47: 1.3 | E47: 0.2 | F47: 6.7 | G47: 34.2 | H47: 0.04 | I47: 0.02 | J47: 0 | K47: 0 | L47: 0 | M47: 122 | N47: 49 | O47: 7 | P47: 9.4 | Q47: 31.6 | R47: 0.78 | S47: 0 | T47: 6.18 | U47: 0
A48: Пром. | B48: Хлеб пшеничный | C48: 20 | D48: 1.52 | E48: 0.16 | F48: 9.84 | G48: 46.9 | H48: 0.02 | I48: 0.01 | J48: 0 | K48: 0 | L48: 0 | M48: 100 | N48: 19 | O48: 4 | P48: 3 | Q48: 13 | R48: 0.2 | S48: 0.64 | T48: 1.2 | U48: 2.9
B49: Итого за Завтрак | C49: =SUM(C43:C48) -> 557 | D49: =SUM(D43:D48) -> 15.82 | E49: =SUM(E43:E48) -> 15.81 | F49: =SUM(F43:F48) -> 67.44 | G49: =SUM(G43:G48) -> 532.05 | H49: 0.12 | I49: 0.06 | J49: 18.82 | K49: 0.1 | L49: 3.56 | M49: 372.3 | N49: 152.03 | O49: 212.87 | P49: 51.46 | Q49: 254.61 | R49: 4.92 | S49: 21.42 | T49: 7.46 | U49: 15.52
B50: Итого за день | C50: =C49 -> 557 | D50: =D49 -> 15.82 | E50: =E49 -> 15.81 | F50: 67.44 | G50: 532.05 | H50: 0.12 | I50: 0.06 | J50: 18.82 | K50: 0.1 | L50: 3.56 | M50: 372.3 | N50: 152.03 | O50: 212.87 | P50: 51.46 | Q50: 254.61 | R50: 4.92 | S50: 21.42 | T50: 7.46 | U50: 15.52
A52: 4 день, 1 неделя
A53: № рецептуры | B53: Прием пищи, наименование блюда | C53: Масса | D53: Пищевые вещества | G53: Энергетическая ценность | H53: Витамины | M53: Минеральные вещества
D54: Белки | E54: Жиры | F54: Углеводы | H54: B1 | I54: B2 | J54: A | K54: D | L54: C | M54: Na | N54: K | O54: Ca | P54: Mg | Q54: P | R54: Fe | S54: I | T54: Se | U54: F
C55: г | D55: г | E55: г | F55: г | G55: ккал | H55: мг | I55: мг | J55: мкг рет.экв | K55: мкг | L55: мг | M55: мг | N55: мг | O55: мг | P55: мг | Q55: мг | R55: мг | S55: мкг | T55: мкг | U55: мкг
B56: Четверг, 1 неделя
B57: Горячий завтрак | C57: 7-10
A58: 54-16з-2020 | B58: Винегрет с растительным маслом | C58: 60 | D58: 0.7 | E58: 5.4 | F58: 4 | G58: 67.1 | H58: 0.02 | I58: 0.02 | J58: 72.89 | K58: 0 | L58: 2.26 | M58: 200.99 | N58: 127.85 | O58: 12.1 | P58: 9.66 | Q58: 21.4 | R58: 0.41 | S58: 7.86 | T58: 0.13 | U58: 11.85
A59: 54-11г-2020 | B59: Картофельное пюре | C59: 150 | D59: 3.1 | E59: 5.3 | F59: 19.8 | G59: 139.4 | H59: 0.12 | I59: 0.11 | J59: 23.8 | K59: 0.09 | L59: 10.2 | M59: 161.78 | N59: 624.83 | O59: 39.49 | P59: 28.23 | Q59: 84.47 | R59: 1.03 | S59: 28.46 | T59: 0.78 | U59: 42.79
A60: № рец. 290 | B60: Птица тушеная в соусе | C60: 50/50 | D60: 8.65 | E60: 6.84 | F60: 3.5 | G60: 145 | H60: 0.1 | I60: 0 | J60: 0 | K60: 0 | L60: 1.5 | M60: 0 | N60: 0 | O60: 26.4 | P60: 16.6 | Q60: 115.3 | R60: 0.9 | S60: 0 | T60: 0 | U60: 0
A61: № Т/к 438 | B61: Напиток яблочный | C61: 200 | D61: 0.1 | E61: 0.1 | F61: 13.9 | G61: 57.8 | H61: 0 | I61: 0 | J61: 0 | K61: 0 | L61: 1 | M61: 0 | N61: 0 | O61: 12.3 | P61: 3.7 | Q61: 2.4 | R61: 0.5 | S61: 0 | T61: 0 | U61: 0
A62: Пром. | B62: Хлеб ржаной | C62: 20 | D62: 1.3 | E62: 0.2 | F62: 6.7 | G62: 34.2 | H62: 0.04 | I62: 0.02 | J62: 0 | K62: 0 | L62: 0 | M62: 122 | N62: 49 | O62: 7 | P62: 9.4 | Q62: 31.6 | R62: 0.78 | S62: 0 | T62: 6.18 | U62: 0
A63: Пром. | B63: Хлеб пшеничный | C63: 20 | D63: 1.52 | E63: 0.16 | F63: 9.84 | G63: 46.9 | H63: 0.02 | I63: 0.01 | J63: 0 | K63: 0 | L63: 0 | M63: 100 | N63: 19 | O63: 4 | P63: 3 | Q63: 13 | R63: 0.2 | S63: 0.64 | T63: 1.2 | U63: 2.9
A64: Пром. | B64: Банан | C64: 250 | D64: 3.75 | E64: 1.25 | F64: 26 | G64: 91.6 | H64: 0.07 | I64: 0.1 | J64: 30 | K64: 0 | L64: 10 | M64: 59 | N64: 722 | O64: 18 | P64: 91 | Q64: 61 | R64: 1.3 | S64: 0.12 | T64: 2.2 | U64: 5.5
B65: Итого за Завтрак | C65: 800 | D65: =SUM(D58:D64) -> 19.12 | E65: =SUM(E58:E64) -> 19.25 | F65: 83.74 | G65: 582 | H65: 0.37 | I65: 0.26 | J65: 126.69 | K65: 0.09 | L65: 24.96 | M65: 643.77 | N65: 1542.68 | O65: 119.29 | P65: 161.59 | Q65: 329.17 | R65: 5.12 | S65: 37.08 | T65: 10.49 | U65: 63.04
B66: Итого за день | C66: =C65 -> 800 | D66: 19.12 | E66: 19.25 | F66: 83.74 | G66: 582 | H66: 0.37 | I66: 0.26 | J66: 126.69 | K66: 0.09 | L66: 24.96 | M66: 643.77 | N66: 1542.68 | O66: 119.29 | P66: 161.59 | Q66: 329.17 | R66: 5.12 | S66: 37.08 | T66: 10.49 | U66: 63.04
A68: 5 день, 1 неделя
A69: № рецептуры | B69: Прием пищи, наименование блюда | C69: Масса | D69: Пищевые вещества | G69: Энергетическая ценность | H69: Витамины | M69: Минеральные вещества
D70: Белки | E70: Жиры | F70: Углеводы | H70: B1 | I70: B2 | J70: A | K70: D | L70: C | M70: Na | N70: K | O70: Ca | P70: Mg | Q70: P | R70: Fe | S70: I | T70: Se | U70: F
C71: г | D71: г | E71: г | F71: г | G71: ккал | H71: мг | I71: мг | J71: мкг рет.экв | K71: мкг | L71: мг | M71: мг | N71: мг | O71: мг | P71: мг | Q71: мг | R71: мг | S71: мкг | T71: мкг | U71: мкг
B72: Пятница, 1 неделя
B73: Горячий завтрак | C73: 7-10
A74: № Т/к 40 | B74: Салат картофельный с морковью, зеленым горошком и растительным маслом | C74: 60 | D74: 1.2 | E74: 3.7 | F74: 7 | G74: 66.9 | H74: 0 | I74: 0 | J74: 0.4 | K74: 0 | L74: 4.5 | M74: 0 | N74: 0 | O74: 13.1 | P74: 15 | Q74: 32.5 | R74: 0.6 | S74: 0 | T74: 0 | U74: 0
A75: 54-6г-2020 | B75: Плов из говядины | C75: 160/40 | D75: 11.09 | E75: 9.35 | F75: 23.94 | G75: 234 | H75: 0.07 | I75: 0.12 | J75: 261.6 | K75: 0.1 | L75: 0.08 | M75: 276 | N75: 267 | O75: 117 | P75: 44 | Q75: 194 | R75: 2.2 | S75: 38.67 | T75: 7.3 | U75: 81.72
A76: 54-4гн-2020 | B76: Компот из кураги | C76: 200 | D76: 0.98 | E76: 0.05 | F76: 15.64 | G76: 66.9 | H76: 0.01 | I76: 0.03 | J76: 69.96 | K76: 0 | L76: 0 | M76: 3 | N76: 285 | O76: 90 | P76: 18 | Q76: 25 | R76: 0.6 | S76: 0 | T76: 0 | U76: 0
A77: Пром. | B77: Хлеб ржаной | C77: 20 | D77: 1.3 | E77: 0.2 | F77: 6.7 | G77: 34.2 | H77: 0.04 | I77: 0.02 | J77: 0 | K77: 0 | L77: 0 | M77: 122 | N77: 49 | O77: 7 | P77: 9.4 | Q77: 31.6 | R77: 0.78 | S77: 0 | T77: 6.18 | U77: 0
A78: Пром. | B78: Булочка ванильная | C78: 60 | D78: 4.68 | E78: 4.03 | F78: 30.46 | G78: 177 | H78: 0.05 | I78: 0.02 | J78: 19.12 | K78: 0.15 | L78: 0 | M78: 241 | N78: 50 | O78: 18 | P78: 6 | Q78: 41 | R78: 0.5 | S78: 33.36 | T78: 3.1 | U78: 11.03
B79: Итого за Завтрак | C79: 540 | D79: =SUM(D74:D78) -> 19.25 | E79: 17.33 | F79: 83.74 | G79: 579 | H79: 0.17 | I79: 0.19 | J79: 351.08 | K79: 0.25 | L79: 4.58 | M79: 642 | N79: 651 | O79: 245.1 | P79: 92.4 | Q79: 324.1 | R79: 4.68 | S79: 72.03 | T79: 16.58 | U79: 92.75
B80: Итого за день | C80: =C79 -> 540 | D80: =D79 -> 19.25 | E80: =E79 -> 17.33 | F80: 83.74 | G80: 579 | H80: 0.17 | I80: 0.19 | J80: 351.08 | K80: 0.25 | L80: 4.58 | M80: 642 | N80: 651 | O80: 245.1 | P80: 92.4 | Q80: 324.1 | R80: 4.68 | S80: 72.03 | T80: 16.58 | U80: 92.75
A82: 6 день, 1 неделя
A83: № рецептуры | B83: Прием пищи, наименование блюда | C83: Масса | D83: Пищевые вещества | G83: Энергетическая ценность | H83: Витамины | M83: Минеральные вещества
D84: Белки | E84: Жиры | F84: Углеводы | H84: B1 | I84: B2 | J84: A | K84: D | L84: C | M84: Na | N84: K | O84: Ca | P84: Mg | Q84: P | R84: Fe | S84: I | T84: Se | U84: F
C85: г | D85: г | E85: г | F85: г | G85: ккал | H85: мг | I85: мг | J85: мкг рет.экв | K85: мкг | L85: мг | M85: мг | N85: мг | O85: мг | P85: мг | Q85: мг | R85: мг | S85: мкг | T85: мкг | U85: мкг
B86: Суббота, 1 неделя
B87: Горячий завтрак | C87: 7-10
A88: № Т/к 15 | B88: Морковь отварная порциями | C88: 60 | D88: 0.8 | E88: 0.1 | F88: 4.1 | G88: 21 | H88: 0 | I88: 0 | J88: 1.5 | K88: 0 | L88: 3 | M88: 0 | N88: 0 | O88: 30.6 | P88: 22.8 | Q88: 33 | R88: 0.6 | S88: 0 | T88: 0 | U88: 0
A89: 54-1т-2020 | B89: Запеканка из творога | C89: 150 | D89: 10.38 | E89: 13.15 | F89: 24.77 | G89: 287.3 | H89: 0.06 | I89: 0.3 | J89: 51.11 | K89: 0.16 | L89: 0 | M89: 181 | N89: 159 | O89: 223 | P89: 32 | Q89: 291 | R89: 0.8 | S89: 28.82 | T89: 39 | U89: 49.63
A90: Пром. | B90: Молоко сгущенное с сахаром | C90: 20 | D90: 1.44 | E90: 1.7 | F90: 11.1 | G90: 65.5 | H90: 0.01 | I90: 0.06 | J90: 5.64 | K90: 0 | L90: 0 | M90: 20 | N90: 61 | O90: 54 | P90: 6 | Q90: 38 | R90: 0 | S90: 1.4 | T90: 0.5 | U90: 7
A91: 54-3гн-2020 | B91: Чай с лимоном и сахаром | C91: 207 | D91: 0.2 | E91: 0.1 | F91: 6.6 | G91: 27.9 | H91: 0 | I91: 0.01 | J91: 0.38 | K91: 0 | L91: 1.16 | M91: 1.26 | N91: 30.23 | O91: 67 | P91: 4.56 | Q91: 8.52 | R91: 0.77 | S91: 0.01 | T91: 0.02 | U91: 0.7
A92: Пром. | B92: Хлеб пшеничный | C92: 20 | D92: 1.52 | E92: 0.16 | F92: 9.84 | G92: 46.9 | H92: 0.02 | I92: 0.01 | J92: 0 | K92: 0 | L92: 0 | M92: 100 | N92: 19 | O92: 4 | P92: 3 | Q92: 13 | R92: 0.2 | S92: 0.64 | T92: 1.2 | U92: 2.9
A93: Пром. | B93: Хлеб ржаной | C93: 20 | D93: 1.3 | E93: 0.2 | F93: 6.7 | G93: 34.2 | H93: 0.04 | I93: 0.02 | J93: 0 | K93: 0 | L93: 0 | M93: 122 | N93: 49 | O93: 7 | P93: 9.4 | Q93: 31.6 | R93: 0.78 | S93: 0 | T93: 6.18 | U93: 0
A94: Пром. | B94: Сушка простая | C94: 30 | D94: 3.27 | E94: 0.39 | F94: 20.64 | G94: 99.1 | H94: 0.05 | I94: 0.02 | J94: 0 | K94: 0 | L94: 0 | M94: 138 | N94: 46 | O94: 8 | P94: 12 | Q94: 32 | R94: 0.8 | S94: 0 | T94: 0 | U94: 0
B95: Итого за Завтрак | C95: =SUM(C88:C94) -> 507 | D95: =SUM(D88:D94) -> 18.91 | E95: 15.8 | F95: 83.75 | G95: =SUM(G88:G94) -> 581.9 | H95: 0.18 | I95: 0.42 | J95: 58.63 | K95: 0.16 | L95: 4.16 | M95: 562.26 | N95: 364.23 | O95: 393.6 | P95: 89.76 | Q95: 447.12 | R95: 3.95 | S95: 30.87 | T95: 46.9 | U95: 60.23
B96: Итого за день | C96: =C95 -> 507 | D96: =D95 -> 18.91 | E96: =E95 -> 15.8 | F96: 83.75 | G96: =G95 -> 581.9 | H96: 0.18 | I96: 0.42 | J96: 58.63 | K96: 0.16 | L96: 4.16 | M96: 562.26 | N96: 364.23 | O96: 393.6 | P96: 89.76 | Q96: 447.12 | R96: 3.95 | S96: 30.87 | T96: 46.9 | U96: 60.23
A98: 7 день, 2 неделя
A99: № рецептуры | B99: Прием пищи, наименование блюда | C99: Масса | D99: Пищевые вещества | G99: Энергетическая ценность | H99: Витамины | M99: Минеральные вещества
D100: Белки | E100: Жиры | F100: Углеводы | H100: B1 | I100: B2 | J100: A | K100: D | L100: C | M100: Na | N100: K | O100: Ca | P100: Mg | Q100: P | R100: Fe | S100: I | T100: Se | U100: F
C101: г | D101: г | E101: г | F101: г | G101: ккал | H101: мг | I101: мг | J101: мкг рет.экв | K101: мкг | L101: мг | M101: мг | N101: мг | O101: мг | P101: мг | Q101: мг | R101: мг | S101: мкг | T101: мкг | U101: мкг
B102: Понедельник, 2 неделя
B103: Горячий завтрак | C103: 7-10
A104: 54-1з | B104: Сыр порциями | C104: 12 | D104: 2.78 | E104: 3.54 | F104: 0 | G104: 43 | H104: 0 | I104: 0.03 | J104: 18.72 | K104: 0.12 | L104: 0 | M104: 74 | N104: 9 | O104: 93 | P104: 4 | Q104: 52 | R104: 0.1 | S104: 0 | T104: 1.5 | U104: 0
A105: 62 | B105: Борщ | C105: 200 | D105: 10.77 | E105: 6.46 | F105: 19.1 | G105: 166 | H105: 0.1 | I105: 0 | J105: 0.2 | K105: 0 | L105: 10.7 | M105: 0 | N105: 0 | O105: 43.5 | P105: 26.9 | Q105: 57.4 | R105: 1.4 | S105: 0 | T105: 0 | U105: 0
A106: 54-2гн-2020 | B106: Чай с сахаром | C106: 200 | D106: 0.2 | E106: 0 | F106: 6.4 | G106: 26.8 | H106: 0 | I106: 0.01 | J106: 0.3 | K106: 0 | L106: 0.04 | M106: 0.68 | N106: 20.76 | O106: 66.08 | P106: 3.83 | Q106: 7.18 | R106: 0.73 | S106: 0 | T106: 0 | U106: 0
A107: № Т/К 400 | B107: Блины фаршированные (вишня, клубника) П/Ф (70гр) 2 шт | C107: 140 | D107: 4.2 | E107: 5.6 | F107: 35 | G107: 210 | H107: 0.06 | I107: 0 | J107: 0 | K107: 0 | L107: 0 | M107: 0 | N107: 0 | O107: 32.44 | P107: 13.18 | Q107: 85 | R107: 1.44 | S107: 0 | T107: 0 | U107: 0
A108: Пром. | B108: Хлеб ржаной | C108: 20 | D108: 1.3 | E108: 0.2 | F108: 6.7 | G108: 34.2 | H108: 0.04 | I108: 0.02 | J108: 0 | K108: 0 | L108: 0 | M108: 122 | N108: 49 | O108: 7 | P108: 9.4 | Q108: 31.6 | R108: 0.78 | S108: 0 | T108: 6.18 | U108: 0
B109: Итого за Завтрак | C109: =SUM(C104:C108) -> 572 | D109: =SUM(D104:D108) -> 19.25 | E109: 15.8 | F109: 67.2 | G109: 480 | H109: 0.2 | I109: 0.06 | J109: 19.22 | K109: 0.12 | L109: 10.74 | M109: 196.68 | N109: 78.76 | O109: 242.02 | P109: 57.31 | Q109: 233.18 | R109: 4.45 | S109: 0 | T109: 7.68 | U109: 0
B110: Итого за день | C110: =C109 -> 572 | D110: =D109 -> 19.25 | E110: 15.8 | F110: 67.2 | G110: 480 | H110: 0.2 | I110: 0.06 | J110: 19.22 | K110: 0.12 | L110: 10.74 | M110: 196.68 | N110: 78.76 | O110: 242.02 | P110: 57.31 | Q110: 233.18 | R110: 4.45 | S110: 0 | T110: 7.68 | U110: 0
A112: 8 день, 2 неделя
A113: № рецептуры | B113: Прием пищи, наименование блюда | C113: Масса | D113: Пищевые вещества | G113: Энергетическая ценность | H113: Витамины | M113: Минеральные вещества
D114: Белки | E114: Жиры | F114: Углеводы | H114: B1 | I114: B2 | J114: A | K114: D | L114: C | M114: Na | N114: K | O114: Ca | P114: Mg | Q114: P | R114: Fe | S114: I | T114: Se | U114: F
C115: г | D115: г | E115: г | F115: г | G115: ккал | H115: мг | I115: мг | J115: мкг рет.экв | K115: мкг | L115: мг | M115: мг | N115: мг | O115: мг | P115: мг | Q115: мг | R115: мг | S115: мкг | T115: мкг | U115: мкг
B116: Вторник, 2 неделя
B117: Горячий завтрак | C117: 7-10
A118: № т/к 33 | B118: Свекла отварная порциями | C118: 60 | D118: 0.9 | E118: 0.1 | F118: 5 | G118: 24.1 | H118: 0 | I118: 0 | J118: 0 | K118: 0 | L118: 2.4 | M118: 0 | N118: 0 | O118: 21.6 | P118: 11.8 | Q118: 23.4 | R118: 0.7 | S118: 0 | T118: 0 | U118: 0
A119: 54-12м-2020 | B119: Плов с курицей | C119: 150/50 | D119: 14.7 | E119: 15.98 | F119: 33.1 | G119: 273.2 | H119: 0.07 | I119: 0.06 | J119: 144.87 | K119: 0 | L119: 2.08 | M119: 272.9 | N119: 287.76 | O119: 72.64 | P119: 78.85 | Q119: 174.89 | R119: 1.53 | S119: 37.41 | T119: 19.63 | U119: 118.1
A120: 54-3гн-2020 | B120: Чай с лимоном и сахаром | C120: 207 | D120: 0.2 | E120: 0.1 | F120: 6.6 | G120: 27.9 | H120: 0 | I120: 0.01 | J120: 0.38 | K120: 0 | L120: 1.16 | M120: 1.26 | N120: 30.23 | O120: 67 | P120: 4.56 | Q120: 8.52 | R120: 0.77 | S120: 0.01 | T120: 0.02 | U120: 0.7
A121: Пром. | B121: Хлеб пшеничный | C121: 20 | D121: 1.52 | E121: 0.16 | F121: 9.84 | G121: 46.9 | H121: 0.02 | I121: 0.01 | J121: 0 | K121: 0 | L121: 0 | M121: 100 | N121: 19 | O121: 4 | P121: 3 | Q121: 13 | R121: 0.2 | S121: 0.64 | T121: 1.2 | U121: 2.9
A122: Пром. | B122: Хлеб ржаной | C122: 20 | D122: 1.3 | E122: 0.2 | F122: 6.7 | G122: 34.2 | H122: 0.04 | I122: 0.02 | J122: 0 | K122: 0 | L122: 0 | M122: 122 | N122: 49 | O122: 7 | P122: 9.4 | Q122: 31.6 | R122: 0.78 | S122: 0 | T122: 6.18 | U122: 0
A123: Пром. | B123: Яблоко | C123: 120 | D123: 0.6 | E123: 0.6 | F123: 14.7 | G123: 66.6 | H123: 0.04 | I123: 0.03 | J123: 7.5 | K123: 0 | L123: 15 | M123: 39 | N123: 417 | O123: 24 | P123: 14 | Q123: 17 | R123: 3.3 | S123: 3 | T123: 0.4 | U123: 12
B124: Итого за Завтрак | C124: 627 | D124: =SUM(D118:D123) -> 19.22 | E124: =SUM(E118:E123) -> 17.14 | F124: 75.94 | G124: 472.9 | H124: 0.17 | I124: 0.13 | J124: 152.75 | K124: 0 | L124: 20.64 | M124: 535.16 | N124: 802.99 | O124: 196.24 | P124: 121.61 | Q124: 268.41 | R124: 7.28 | S124: 41.06 | T124: 27.43 | U124: 133.7
B125: Итого за день | C125: =C124 -> 627 | D125: =D124 -> 19.22 | E125: =E124 -> 17.14 | F125: 75.94 | G125: 472.9 | H125: 0.17 | I125: 0.13 | J125: 152.75 | K125: 0 | L125: 20.64 | M125: 535.16 | N125: 802.99 | O125: 196.24 | P125: 121.61 | Q125: 268.41 | R125: 7.28 | S125: 41.06 | T125: 27.43 | U125: 133.7
A127: 9 день, 2 неделя
A128: № рецептуры | B128: Прием пищи, наименование блюда | C128: Масса | D128: Пищевые вещества | G128: Энергетическая ценность | H128: Витамины | M128: Минеральные вещества
D129: Белки | E129: Жиры | F129: Углеводы | H129: B1 | I129: B2 | J129: A | K129: D | L129: C | M129: Na | N129: K | O129: Ca | P129: Mg | Q129: P | R129: Fe | S129: I | T129: Se | U129: F
C130: г | D130: г | E130: г | F130: г | G130: ккал | H130: мг | I130: мг | J130: мкг рет.экв | K130: мкг | L130: мг | M130: мг | N130: мг | O130: мг | P130: мг | Q130: мг | R130: мг | S130: мкг | T130: мкг | U130: мкг
B131: Среда, 2 неделя
B132: Горячий завтрак | C132: 7-10
A133: 54-16з-2020 | B133: Винегрет с растительным маслом | C133: 60 | D133: 0.7 | E133: 5.4 | F133: 4 | G133: 67.1 | H133: 0.02 | I133: 0.02 | J133: 72.89 | K133: 0 | L133: 2.26 | M133: 200.99 | N133: 127.85 | O133: 12.1 | P133: 9.66 | Q133: 21.4 | R133: 0.41 | S133: 7.86 | T133: 0.13 | U133: 11.85
A134: 54-11г-2020 | B134: Картофельное пюре | C134: 150 | D134: 3.1 | E134: 5.3 | F134: 19.8 | G134: 139.4 | H134: 0.12 | I134: 0.11 | J134: 23.8 | K134: 0.09 | L134: 10.2 | M134: 161.78 | N134: 624.83 | O134: 39.49 | P134: 28.23 | Q134: 84.47 | R134: 1.03 | S134: 28.46 | T134: 0.78 | U134: 42.79
A135: 54-7р-2020 | B135: Рыба припущенная в молоко | C135: 70/30 | D135: 10.06 | E135: 7.52 | F135: 2.89 | G135: 131.6 | H135: 0.08 | I135: 0.11 | J135: 9.02 | K135: 0.16 | L135: 1 | M135: 111 | N135: 347 | O135: 68 | P135: 44 | Q135: 202 | R135: 0.7 | S135: 133.48 | T135: 11.9 | U135: 572.6
A136: №Т/К 436 | B136: Напиток апельсиновый | C136: 200 | D136: 0.2 | E136: 0 | F136: 13 | G136: 53.5 | H136: 0 | I136: 0 | J136: 0 | K136: 0 | L136: 4 | M136: 0 | N136: 0 | O136: 13.5 | P136: 3.8 | Q136: 3.5 | R136: 0.1 | S136: 0 | T136: 0 | U136: 0
A137: Пром. | B137: Булочка веснушка (хлебзавод) 50 гр | C137: 50 | D137: 3.85 | E137: 1.2 | F137: 26.7 | G137: 133 | H137: 0.06 | I137: 0.01 | J137: 0 | K137: 0 | L137: 0 | M137: 219 | N137: 49 | O137: 10 | P137: 7 | Q137: 34 | R137: 0.6 | S137: 0 | T137: 0 | U137: 0
A138: Пром. | B138: Хлеб ржаной | C138: 20 | D138: 1.3 | E138: 0.2 | F138: 6.7 | G138: 34.2 | H138: 0.04 | I138: 0.02 | J138: 0 | K138: 0 | L138: 0 | M138: 122 | N138: 49 | O138: 7 | P138: 9.4 | Q138: 31.6 | R138: 0.78 | S138: 0 | T138: 6.18 | U138: 0
B139: Итого за Завтрак | C139: =C133+C134+C136+C137+C138+100 -> 580 | D139: =D133+D134+D135+D136+D137+D138 -> 19.21 | E139: =E133+E134+E135+E136+E137+E138 -> 19.62 | F139: =F133+F134+F135+F136+F137+F138 -> 73.09 | G139: =G133+G134+G135+G136+G137+G138 -> 558.8 | H139: =H133+H134+H135+H136+H137+H138 -> 0.32 | I139: 0.27 | J139: 105.71 | K139: 0.25 | L139: 17.46 | M139: 814.77 | N139: 1197.68 | O139: 150.09 | P139: 102.09 | Q139: 376.97 | R139: 3.62 | S139: 169.8 | T139: 18.99 | U139: 627.24
B140: Итого за день | C140: =C139 -> 580 | D140: 19.21 | E140: 19.62 | F140: 73.09 | G140: 558.8 | H140: 0.32 | I140: =I139 -> 0.27 | J140: 105.71 | K140: 0.25 | L140: 17.46 | M140: 814.77 | N140: 1197.68 | O140: 150.09 | P140: 102.09 | Q140: 376.97 | R140: 3.62 | S140: 169.8 | T140: 18.99 | U140: 627.24
A142: 10 день, 2 неделя
A143: № рецептуры | B143: Прием пищи, наименование блюда | C143: Масса | D143: Пищевые вещества | G143: Энергетическая ценность | H143: Витамины | M143: Минеральные вещества
D144: Белки | E144: Жиры | F144: Углеводы | H144: B1 | I144: B2 | J144: A | K144: D | L144: C | M144: Na | N144: K | O144: Ca | P144: Mg | Q144: P | R144: Fe | S144: I | T144: Se | U144: F
C145: г | D145: г | E145: г | F145: г | G145: ккал | H145: мг | I145: мг | J145: мкг рет.экв | K145: мкг | L145: мг | M145: мг | N145: мг | O145: мг | P145: мг | Q145: мг | R145: мг | S145: мкг | T145: мкг | U145: мкг
B146: Четверг, 2 неделя
B147: Горячий завтрак | C147: 7-10
A148: № Т/к 40 | B148: Салат картофельный с морковью, зеленым горошком и растительным маслом | C148: 60 | D148: 1.2 | E148: 3.7 | F148: 7 | G148: 66.9 | H148: 0 | I148: 0 | J148: 0.4 | K148: 0 | L148: 4.5 | M148: 0 | N148: 0 | O148: 13.1 | P148: 15 | Q148: 32.5 | R148: 0.6 | S148: 0 | T148: 0 | U148: 0
A149: 54-4г-2020 | B149: Каша гречневая рассыпчатая | C149: 150 | D149: 3.2 | E149: 4.8 | F149: 35.9 | G149: 147.1 | H149: 0.21 | I149: 0.12 | J149: 19.19 | K149: 0.09 | L149: 0 | M149: 149.45 | N149: 219.36 | O149: 46.62 | P149: 120.16 | Q149: 180.99 | R149: 4.05 | S149: 22.28 | T149: 3.52 | U149: 16.06
A150: 54-2м-2020 | B150: Гуляш из говядины | C150: 60/40 | D150: 3.35 | E150: 3.94 | F150: 3.9 | G150: 130.8 | H150: 0.04 | I150: 0.12 | J150: 25.46 | K150: 0.07 | L150: 1 | M150: 122 | N150: 322 | O150: 55 | P150: 23 | Q150: 166 | R150: 2.5 | S150: 17.06 | T150: 0.4 | U150: 62.71
A151: 54-21гн-2020 | B151: Кофейный напиток с молоком | C151: 200 | D151: 3.9 | E151: 2.9 | F151: 11.2 | G151: 86 | H151: 0.03 | I151: 0.13 | J151: 13.29 | K151: 0 | L151: 0.52 | M151: 38.55 | N151: 183.98 | O151: 148.32 | P151: 30.67 | Q151: 106.79 | R151: 1.06 | S151: 9 | T151: 1.76 | U151: 20
A152: Пром. | B152: Хлеб пшеничный | C152: 20 | D152: 1.52 | E152: 0.16 | F152: 9.84 | G152: 46.9 | H152: 0.02 | I152: 0.01 | J152: 0 | K152: 0 | L152: 0 | M152: 100 | N152: 19 | O152: 4 | P152: 3 | Q152: 13 | R152: 0.2 | S152: 0.64 | T152: 1.2 | U152: 2.9
A153: Пром. | B153: Хлеб ржаной | C153: 20 | D153: 1.3 | E153: 0.2 | F153: 6.7 | G153: 34.2 | H153: 0.04 | I153: 0.02 | J153: 0 | K153: 0 | L153: 0 | M153: 122 | N153: 49 | O153: 7 | P153: 9.4 | Q153: 31.6 | R153: 0.78 | S153: 0 | T153: 6.18 | U153: 0
A154: 54-6о | B154: Яйцо вареное 1 шт | C154: 40 | D154: 4.78 | E154: 4.05 | F154: 0.25 | G154: 56.6 | H154: 0.02 | I154: 0.14 | J154: 62.4 | K154: 0.88 | L154: 0 | M154: 41 | N154: 46 | O154: 19 | P154: 4 | Q154: 67 | R154: 0.9 | S154: 8 | T154: 10.8 | U154: 22
B155: Итого за Завтрак | C155: 590 | D155: =SUM(D148:D154) -> 19.25 | E155: =SUM(E148:E154) -> 19.75 | F155: 74.79 | G155: 568.5 | H155: 0.36 | I155: 0.54 | J155: 120.74 | K155: 1.04 | L155: 6.02 | M155: 573 | N155: 839.34 | O155: 293.04 | P155: 205.23 | Q155: 597.88 | R155: 10.09 | S155: 56.98 | T155: 23.86 | U155: 123.67
B156: Итого за день | C156: =C155 -> 590 | D156: =D155 -> 19.25 | E156: 19.75 | F156: 74.79 | G156: 568.5 | H156: 0.36 | I156: 0.54 | J156: 120.74 | K156: 1.04 | L156: 6.02 | M156: 573 | N156: 839.34 | O156: 293.04 | P156: 205.23 | Q156: 597.88 | R156: 10.09 | S156: 56.98 | T156: 23.86 | U156: 123.67
A158: 11 день, 2 неделя
A159: № рецептуры | B159: Прием пищи, наименование блюда | C159: Масса | D159: Пищевые вещества | G159: Энергетическая ценность | H159: Витамины | M159: Минеральные вещества
D160: Белки | E160: Жиры | F160: Углеводы | H160: B1 | I160: B2 | J160: A | K160: D | L160: C | M160: Na | N160: K | O160: Ca | P160: Mg | Q160: P | R160: Fe | S160: I | T160: Se | U160: F
C161: г | D161: г | E161: г | F161: г | G161: ккал | H161: мг | I161: мг | J161: мкг рет.экв | K161: мкг | L161: мг | M161: мг | N161: мг | O161: мг | P161: мг | Q161: мг | R161: мг | S161: мкг | T161: мкг | U161: мкг
B162: Пятница, 2 неделя
B163: Горячий завтрак | C163: 7-10
A164: 54-13з-2020 | B164: Салат из свеклы отварной с растительным маслом | C164: 60 | D164: 0.8 | E164: 2.7 | F164: 4.6 | G164: 45.6 | H164: 0.01 | I164: 0.02 | J164: 0.68 | K164: 0 | L164: 2.28 | M164: 78.77 | N164: 136.27 | O164: 19.21 | P164: 10.95 | Q164: 21.51 | R164: 0.7 | S164: 11.99 | T164: 0.35 | U164: 11.4
A165: 54-1г-2020 | B165: Макароны отварные | C165: 150 | D165: 5.3 | E165: 4.9 | F165: 32.8 | G165: 196.8 | H165: 0.06 | I165: 0.02 | J165: 18.36 | K165: 0.09 | L165: 0 | M165: 149.04 | N165: 53.8 | O165: 105.83 | P165: 7.19 | Q165: 40.7 | R165: 0.73 | S165: 20.77 | T165: 0.06 | U165: 11.92
A166: ном.рец №174 | B166: Тефтели мясные из говядины, полуфабрикат в соусе | C166: 75/30 | D166: 9.31 | E166: 11.7 | F166: 8.42 | G166: 168.9 | H166: 0 | I166: 0 | J166: 38.45 | K166: 0.01 | L166: 1.79 | M166: 3 | N166: 43 | O166: 45.75 | P166: 35.13 | Q166: 109 | R166: 1.6 | S166: 0 | T166: 0 | U166: 0
A167: 54-4гн-2020 | B167: Компот из кураги | C167: 200 | D167: 0.98 | E167: 0.05 | F167: 15.64 | G167: 66.9 | H167: 0.01 | I167: 0.03 | J167: 69.96 | K167: 0 | L167: 0 | M167: 3 | N167: 285 | O167: 90 | P167: 18 | Q167: 25 | R167: 0.6 | S167: 0 | T167: 0 | U167: 0
A168: Пром. | B168: Хлеб ржаной | C168: 20 | D168: 1.3 | E168: 0.2 | F168: 6.7 | G168: 34.2 | H168: 0.04 | I168: 0.02 | J168: 0 | K168: 0 | L168: 0 | M168: 122 | N168: 49 | O168: 7 | P168: 9.4 | Q168: 31.6 | R168: 0.78 | S168: 0 | T168: 6.18 | U168: 0
A169: Пром. | B169: Хлеб пшеничный | C169: 20 | D169: 1.52 | E169: 0.16 | F169: 9.84 | G169: 46.9 | H169: 0.02 | I169: 0.01 | J169: 0 | K169: 0 | L169: 0 | M169: 100 | N169: 19 | O169: 4 | P169: 3 | Q169: 13 | R169: 0.2 | S169: 0.64 | T169: 1.2 | U169: 2.9
B170: Итого за Завтрак | C170: 555 | D170: =SUM(D164:D169) -> 19.21 | E170: 19.71 | F170: 78 | G170: 559.3 | H170: 0.14 | I170: 0.1 | J170: 127.45 | K170: 0.1 | L170: 4.07 | M170: 455.81 | N170: 586.07 | O170: 271.79 | P170: 83.67 | Q170: 240.81 | R170: 4.61 | S170: 33.4 | T170: 7.79 | U170: 26.22
B171: Итого за день | C171: =C170 -> 555 | D171: =D170 -> 19.21 | E171: 19.71 | F171: 78 | G171: 559.3 | H171: 0.14 | I171: 0.1 | J171: 127.45 | K171: 0.1 | L171: 4.07 | M171: 455.81 | N171: 586.07 | O171: 271.79 | P171: 83.67 | Q171: 240.81 | R171: 4.61 | S171: 33.4 | T171: 7.79 | U171: 26.22
A173: 12 день, 2 неделя
A174: № рецептуры | B174: Прием пищи, наименование блюда | C174: Масса | D174: Пищевые вещества | G174: Энергетическая ценность | H174: Витамины | M174: Минеральные вещества
D175: Белки | E175: Жиры | F175: Углеводы | H175: B1 | I175: B2 | J175: A | K175: D | L175: C | M175: Na | N175: K | O175: Ca | P175: Mg | Q175: P | R175: Fe | S175: I | T175: Se | U175: F
C176: г | D176: г | E176: г | F176: г | G176: ккал | H176: мг | I176: мг | J176: мкг рет.экв | K176: мкг | L176: мг | M176: мг | N176: мг | O176: мг | P176: мг | Q176: мг | R176: мг | S176: мкг | T176: мкг | U176: мкг
B177: Суббота, 2 неделя
B178: Горячий завтрак | C178: 7-10
A179: № Т/к 15 | B179: Морковь отварная порциями | C179: 60 | D179: 0.8 | E179: 0.1 | F179: 4.1 | G179: 21 | H179: 0 | I179: 0 | J179: 1.5 | K179: 0 | L179: 3 | M179: 0 | N179: 0 | O179: 30.6 | P179: 22.8 | Q179: 33 | R179: 0.6 | S179: 0 | T179: 0 | U179: 0
A180: 54-1т-2020 | B180: Запеканка из творога | C180: 150 | D180: 10.38 | E180: 13.15 | F180: 24.77 | G180: 287.3 | H180: 0.06 | I180: 0.3 | J180: 51.11 | K180: 0.16 | L180: 0 | M180: 181 | N180: 159 | O180: 223 | P180: 32 | Q180: 291 | R180: 0.8 | S180: 28.82 | T180: 39 | U180: 49.63
A181: Пром. | B181: Молоко сгущенное с сахаром | C181: 20 | D181: 1.44 | E181: 1.7 | F181: 11.1 | G181: 65.5 | H181: 0.01 | I181: 0.06 | J181: 5.64 | K181: 0 | L181: 0 | M181: 20 | N181: 61 | O181: 54 | P181: 6 | Q181: 38 | R181: 0 | S181: 1.4 | T181: 0.5 | U181: 7
A182: 54-3гн-2020 | B182: Чай с лимоном и сахаром | C182: 207 | D182: 0.2 | E182: 0.1 | F182: 6.6 | G182: 27.9 | H182: 0 | I182: 0.01 | J182: 0.38 | K182: 0 | L182: 1.16 | M182: 1.26 | N182: 30.23 | O182: 67 | P182: 4.56 | Q182: 8.52 | R182: 0.77 | S182: 0.01 | T182: 0.02 | U182: 0.7
A183: Пром. | B183: Хлеб ржаной | C183: 20 | D183: 1.3 | E183: 0.2 | F183: 6.7 | G183: 34.2 | H183: 0.04 | I183: 0.02 | J183: 0 | K183: 0 | L183: 0 | M183: 122 | N183: 49 | O183: 7 | P183: 9.4 | Q183: 31.6 | R183: 0.78 | S183: 0 | T183: 6.18 | U183: 0
A184: Пром. | B184: Хлеб пшеничный | C184: 20 | D184: 1.52 | E184: 0.16 | F184: 9.84 | G184: 46.9 | H184: 0.02 | I184: 0.01 | J184: 0 | K184: 0 | L184: 0 | M184: 100 | N184: 19 | O184: 4 | P184: 3 | Q184: 13 | R184: 0.2 | S184: 0.64 | T184: 1.2 | U184: 2.9
A185: Пром. | B185: Сушка простая | C185: 30 | D185: 3.27 | E185: 0.39 | F185: 20.64 | G185: 99.1 | H185: 0.05 | I185: 0.02 | J185: 0 | K185: 0 | L185: 0 | M185: 138 | N185: 46 | O185: 8 | P185: 12 | Q185: 32 | R185: 0.8 | S185: 0 | T185: 0 | U185: 0
B186: Итого за Завтрак | C186: =SUM(C179:C185) -> 507 | D186: =SUM(D179:D185) -> 18.91 | E186: 15.8 | F186: 83.75 | G186: 581.9 | H186: 0.18 | I186: 0.42 | J186: 58.63 | K186: 0.16 | L186: 4.16 | M186: 562.26 | N186: 364.23 | O186: 393.6 | P186: 89.76 | Q186: 447.12 | R186: 3.95 | S186: 30.87 | T186: 46.9 | U186: 60.23
B187: Итого за день | C187: =C186 -> 507 | D187: =D186 -> 18.91 | E187: =E186 -> 15.8 | F187: 83.75 | G187: =G186 -> 581.9 | H187: 0.18 | I187: 0.42 | J187: 58.63 | K187: 0.16 | L187: 4.16 | M187: 562.26 | N187: 364.23 | O187: 393.6 | P187: 89.76 | Q187: 447.12 | R187: 3.95 | S187: 30.87 | T187: 46.9 | U187: 60.23
D189: ИТОГО ПО МЕНЮ
B191: ИТОГО | C191: Пищевые вещества | F191: Энергетическая ценность | G191: Витамины | L191: Минеральные вещества
C192: Белки | D192: Жиры | E192: Углеводы | G192: B1 | H192: B2 | I192: A | J192: D | K192: C | L192: Na | M192: K | N192: Ca | O192: Mg | P192: P | Q192: Fe | R192: I | S192: Se | T192: F
C193: г | D193: г | E193: г | F193: ккал | G193: мг | H193: мг | I193: мкг рет.экв | J193: мкг | K193: мг | L193: мг | M193: мг | N193: мг | O193: мг | P193: мг | Q193: мг | R193: мкг | S193: мкг | T193: мкг
B194: Итого за весь период | C194: =D20+D35+D50+D66+D80+D96+D110+D125+D140+D156+D171+D187 -> 225.37 | D194: 210.32 | E194: 927.18 | F194: 6526.25 | G194: 2.63 | H194: 2.61 | I194: 1239.67 | J194: 2.36 | K194: 117.01 | L194: 6075.48 | M194: 6951.76 | N194: 3036.97 | O194: 1225.73 | P194: 4018.97 | Q194: 60.57 | R194: 527.27 | S194: 235.89 | T194: 1254.54
B195: Среднее значение | C195: =C194/12 -> 18.78 | D195: =D194/12 -> 17.53 | E195: 77.265 | F195: =F194/12 -> 543.8541667 | G195: 0.22 | H195: 0.22 | I195: 103.3058333 | J195: 0.20 | K195: 9.750833333 | L195: 506.29 | M195: 579.3133333 | N195: 253.0808333 | O195: 102.1441667 | P195: 334.9141667 | Q195: 5.05 | R195: 43.93916667 | S195: 19.6575 | T195: 104.545
B196: Содержание белков, жиров, углеводов в меню за период в % от калорийности | C196: 14.17 | D196: =D194*9/F194*100 -> 29.00 | E196: =E194*4*100/F194 -> 56.83
C198: СУММАРНЫЕ ОБЪЕМЫ БЛЮД ПО ПРИЕМАМ ПИЩИ (В ГРАММАХ)
B200: Возраст детей | C200: Горячий завтрак
B201: 7-10 лет | C201: =(C187+C171+C156+C140+C125+C110+C96+C80+C66+C50+C35+C20)/12 -> 584
B203: Овощи для салатов (морковь, лук, капуста, картофель) урожай 2022 года
